bitfinex-derivatives/quotes_ETHF0:USTF0_20251210
["timestamp","ask_amount","ask_price","bid_price","bid_amount"]
[1765333420314,1.4356,3311.9,3311.8,3.9368]
[1765333420521,1.1174,3312.0,3311.9,1.4462]
[1765333420922,1.1174,3312.5,3312.4,1.4462]
[1765333421619,1.8517,3312.5,3312.4,1.4462]
[1765333422118,1.4356,3312.3,3312.2,0.729]
[1765333422322,1.4356,3312.1,3312.0,1.59715]
[1765333422822,1.8517,3312.5,3312.4,0.729]
[1765333423926,0.7013,3312.1,3312.0,1.59715]
[1765333424124,0.7013,3312.1,3312.0,2.6693298]
[1765333424425,0.4161,3312.5,3312.0,2.6693298]
[1765333424426,1.1174,3312.5,3312.4,0.729]
[1765333424725,1.8517,3312.5,3312.4,0.729]
[1765333424926,1.8517,3312.5,3312.0,1.2231298]
[1765333425120,1.8517,3312.5,3312.4,0.729]
[1765333425424,1.8517,3312.5,3312.0,1.2231298]
[1765333425614,1.8517,3312.5,3312.0,0.15095]
[1765333426318,1.4356,3312.1,3312.0,0.87995]
[1765333426513,1.4356,3312.1,3312.0,0.15095]
[1765333426721,1.4356,3312.1,3312.0,1.59715]
[1765333426921,0.4161,3312.5,3312.0,1.59715]
[1765333427420,1.8517,3312.5,3312.4,0.729]
[1765333427725,1.8517,3312.5,3312.4,1.4462]
[1765333429025,1.8517,3312.5,3312.4,0.729]
[1765333430721,1.4356,3312.1,3312.0,1.59715]
[1765333431626,0.7013,3312.1,3312.0,1.59715]
[1765333431821,1.1174,3312.5,3312.4,0.729]
[1765333432126,1.8517,3312.5,3312.4,0.729]
[1765333433120,1.1174,3312.5,3312.4,1.4462]
[1765333435919,1.82665338,3313.0,3312.9,0.7185]
[1765333436123,0.41875338,3313.0,3312.9,2.13059775]
[1765333436324,1.14425338,3313.0,3312.9,2.13059775]
[1765333436526,1.82665338,3313.0,3312.9,1.445]
[1765333436724,1.4079,3312.6,3312.5,2.62720755]
[1765333436924,1.4079,3312.6,3312.5,1.2231098]
[1765333437931,1.4079,3312.6,3312.5,1.9416098]
[1765333438126,1.4079,3312.6,3312.5,0.15093]
[1765333439230,0.7255,3312.6,3312.5,1.59593]
[1765333439430,0.7255,3312.6,3312.5,2.6681098]
[1765333439627,1.4079,3312.6,3312.5,2.6681098]
[1765333440829,0.7255,3312.6,3312.5,2.6681098]
[1765333441035,1.4079,3312.6,3312.5,2.6681098]
[1765333442432,0.7255,3312.6,3312.5,2.6681098]
[1765333442630,0.41875338,3313.0,3312.5,2.6681098]
[1765333442827,1.82665338,3313.0,3312.9,0.7185]
[1765333443329,1.82665338,3313.0,3312.5,1.2231098]
[1765333445034,1.4079,3312.6,3312.5,2.6681098]
[1765333445630,1.8195,3312.5,3312.4,1.0721798]
[1765333446232,1.8195,3312.5,3312.4,1.7906798]
[1765333446741,1.8195,3312.5,3312.4,2.5171798]
[1765333447035,1.4079,3312.3,3312.2,3.2078]
[1765333447435,1.4079,3312.3,3312.2,3.9263]
[1765333447936,0.4116,3312.5,3312.4,0.7185]
[1765333448239,0.4116,3312.5,3312.4,1.445]
[1765333448240,1.8195,3312.5,3312.4,1.445]
[1765333448833,0.4116,3312.5,3312.4,1.445]
[1765333449032,1.1371,3312.5,3312.4,2.5171798]
[1765333449231,1.1371,3312.5,3312.4,1.445]
[1765333449431,1.8195,3312.5,3312.4,1.445]
[1765333452241,1.8195,3312.5,3312.4,0.7185]
[1765333452836,1.4074,3312.4,3312.3,1.7528798]
[1765333453036,1.4074,3312.4,3312.3,1.0721798]
[1765333453234,1.4074,3312.2,3312.1,1.0721798]
[1765333453641,1.4074,3312.2,3312.1,1.7528798]
[1765333453842,1.4074,3312.2,3312.1,1.0721798]
[1765333454141,0.4116,3312.5,3312.0,1.7528798]
[1765333454142,1.4074,3312.1,3312.0,1.7528798]
[1765333454442,1.4074,3312.1,3312.0,1.0721798]
[1765333454836,1.8401,3312.0,3311.9,1.0721798]
[1765333455036,1.8401,3312.0,3311.8,2.4783798]
[1765333455037,1.4074,3311.9,3311.8,2.4783798]
[1765333455843,1.4074,3311.9,3311.8,1.7528798]
[1765333456040,1.4074,3311.9,3311.8,2.4783798]
[1765333456241,1.4074,3311.9,3311.8,1.4062]
[1765333456540,1.4074,3311.8,3311.7,0.6807]
[1765333456937,0.6959,3311.8,3311.7,1.4062]
[1765333457242,0.6959,3311.8,3311.7,2.4783798]
[1765333457441,0.6959,3311.8,3311.7,1.4062]
[1765333457642,1.4074,3311.6,3311.5,0.00453193]
[1765333458230,1.4074,3311.1,3311.0,3.2078]
[1765333458635,0.4327,3311.5,3310.6,1.61069877]
[1765333458636,1.4074,3310.7,3310.6,3.21096535]
[1765333460438,1.4074,3310.7,3310.6,0.00316535]
[1765333463139,3.64503193,3311.0,3310.3,0.00453193]
[1765333463140,1.4309,3310.4,3310.3,0.00453193]
[1765333463742,0.7414,3309.9,3309.8,4.6253]
[1765333463935,1.1793,3310.0,3309.9,1.4175]
[1765333464140,1.18248736,3310.0,3309.9,1.41964475]
[1765333465145,1.87198736,3310.0,3309.9,1.41964475]
[1765333465348,0.00318736,3310.0,3309.9,1.41964475]
[1765333466850,1.87198736,3310.0,3309.9,1.41964475]
[1765333467054,1.87198736,3310.0,3309.9,0.00214475]
[1765333467347,1.87198736,3310.0,3309.9,0.73014475]
[1765333467742,1.87198736,3310.0,3309.9,0.00214475]
[1765333469751,1.87198736,3310.0,3309.9,0.73014475]
[1765333469945,1.87198736,3310.0,3309.9,0.00214475]
[1765333476167,1.4309,3309.7,3309.6,0.00453193]
[1765333476463,4.6387,3309.7,3309.6,0.00453193]
[1765333476962,4.6387,3309.7,3309.6,1.42203193]
[1765333477162,4.6387,3309.7,3309.6,0.00825103]
[1765333479463,4.6387,3309.7,3309.6,0.73625103]
[1765333479663,4.6387,3309.7,3309.6,0.00825103]
[1765333488165,3.9492,3309.7,3309.6,1.42575103]
[1765333488368,3.2078,3309.7,3309.6,1.42575103]
[1765333489468,4.6387,3309.7,3309.6,1.42575103]
[1765333489669,4.6387,3309.7,3309.6,0.73625103]
[1765333489975,4.6387,3309.7,3309.6,1.42575103]
[1765333490372,3.9492,3309.7,3309.6,1.42575103]
[1765333490668,3.2078,3309.7,3309.6,1.42575103]
[1765333490869,3.9492,3309.7,3309.6,1.42575103]
[1765333491069,4.6387,3309.7,3309.6,1.42575103]
[1765333491270,4.6387,3309.7,3309.6,0.73625103]
[1765333491572,4.6387,3309.7,3309.6,0.00825103]
[1765333492372,3.9492,3309.7,3309.6,1.42575103]
[1765333492570,3.2078,3309.7,3309.6,1.42575103]
[1765333492770,3.9492,3309.7,3309.6,1.42575103]
[1765333493168,4.6387,3309.7,3309.6,1.42575103]
[1765333493976,4.6928,3309.7,3309.6,1.42575103]
[1765333494775,4.6928,3309.7,3309.6,0.73625103]
[1765333495176,4.6928,3309.7,3309.6,1.44955103]
[1765333496069,4.6928,3309.7,3309.6,0.00825103]
[1765333496675,4.6928,3309.7,3309.6,0.73475103]
[1765333496876,4.6928,3309.7,3309.6,0.00825103]
[1765333497177,4.6928,3309.7,3309.6,1.44805103]
[1765333497376,4.6928,3309.7,3309.6,2.52023083]
[1765333498376,3.9492,3309.7,3309.6,2.52023083]
[1765333499176,4.6928,3309.7,3309.6,2.52023083]
[1765333499682,1.485,3309.7,3309.6,2.52023083]
[1765333500372,0.7414,3309.7,3309.6,2.52023083]
[1765333500768,1.485,3309.7,3309.6,2.52023083]
[1765333501080,1.485,3309.7,3309.6,1.08043083]
[1765333501281,1.485,3309.7,3309.6,1.80693083]
[1765333501973,1.485,3309.7,3309.6,1.08043083]
[1765333502374,1.485,3309.7,3309.6,0.00825103]
[1765333502375,4.6928,3309.7,3309.6,0.00825103]
[1765333503273,1.4354,3309.3,3309.2,1.0721798]
[1765333503470,1.4354,3309.2,3309.1,2.5119798]
[1765333503674,4.6432,3309.7,3309.6,1.4398]
[1765333504069,4.6432,3309.7,3309.6,0.7265]
[1765333504273,1.4354,3309.4,3309.3,1.08254385]
[1765333504476,1.4354,3309.4,3309.3,1.08615649]
[1765333504783,1.4354,3309.4,3309.3,0.00814457]
[1765333515485,1.4354,3309.4,3309.3,0.73464457]
[1765333515689,1.4354,3309.4,3309.3,1.42634457]
[1765333515888,1.4354,3309.4,3309.3,0.73464457]
[1765333518790,1.4354,3309.4,3309.3,1.42634457]
[1765333518989,1.1127,3309.5,3309.4,1.3887]
[1765333520084,1.8394,3309.5,3309.4,1.3887]
[1765333521390,1.8394,3309.5,3309.4,0.697]
[1765333522294,1.8394,3309.5,3308.7,0.93870654]
[1765333522295,1.4148,3308.8,3308.7,0.93870654]
[1765333522490,1.4148,3308.8,3307.8,12.40589758]
[1765333522491,1.4148,3308.3,3308.2,2.30453342]
[1765333522686,1.1146,3308.5,3308.4,1.3887]
[1765333522887,0.4265,3308.5,3308.4,2.03262096]
[1765333523288,1.1146,3308.5,3308.4,2.03481361]
[1765333523692,1.8568,3308.5,3308.4,2.03481361]
[1765333524999,1.1146,3308.5,3308.4,2.03481361]
[1765333525299,0.4265,3308.5,3308.4,2.03481361]
[1765333526089,0.00453193,3308.8,3308.7,1.4185]
[1765333526291,0.00453193,3308.8,3308.7,2.06242096]
[1765333526595,1.1484,3308.5,3308.4,5.55883495]
[1765333526798,1.1484,3308.5,3308.4,6.24263495]
[1765333527000,0.4414,3308.5,3308.4,6.24263495]
[1765333528495,1.45373193,3308.8,3308.7,0.7347]
[1765333528799,1.45373193,3308.8,3308.7,1.4185]
[1765333529400,1.1484,3308.5,3308.4,6.24263495]
[1765333529799,0.4414,3308.5,3308.4,6.24263495]
[1765333530401,1.45373193,3308.8,3308.7,1.4185]
[1765333533100,0.71153193,3308.8,3308.7,1.4185]
[1765333533305,0.00453193,3308.8,3308.7,1.4185]
[1765333533500,0.00453193,3308.8,3308.7,3.0326423]
[1765333533700,0.00453193,3308.8,3308.7,1.4185]
[1765333535202,0.00453193,3308.8,3308.7,1.5696]
[1765333535399,3.2078,3309.2,3308.6,0.64392096]
[1765333535400,3.2078,3309.2,3309.1,1.4185]
[1765333535700,3.2078,3309.2,3309.1,2.06242096]
[1765333536204,4.657,3309.2,3309.1,2.06242096]
[1765333536606,3.2078,3309.2,3309.1,2.06242096]
[1765333537204,1.87833193,3309.5,3309.4,0.7347]
[1765333538606,1.87833193,3309.5,3309.4,1.4185]
[1765333539508,1.87833193,3309.5,3309.4,2.06242096]
[1765333539708,1.87833193,3309.5,3309.4,1.4185]
[1765333541409,1.4492,3309.1,3309.0,1.61513333]
[1765333542006,0.707,3309.1,3309.0,3.03363333]
[1765333542213,0.707,3309.1,3309.0,0.7347]
[1765333542214,1.4492,3309.1,3309.0,0.7347]
[1765333542606,1.4492,3309.1,3309.0,1.4185]
[1765333542808,1.4492,3309.1,3309.0,3.03363333]
[1765333543004,1.4492,3309.1,3309.0,1.61513333]
[1765333543203,1.4492,3308.9,3308.8,5.70872333]
[1765333543404,1.4492,3308.9,3308.8,3.35889]
[1765333543713,1.4492,3308.9,3308.8,4.09359]
[1765333544708,1.4492,3308.9,3308.8,0.88579]
[1765333545013,1.4492,3308.9,3308.8,0.15109]
[1765333545702,1.4492,3308.8,3308.7,1.61513333]
[1765333545907,1.4492,3308.8,3308.0,2.17047658]
[1765333545908,1.4492,3308.2,3308.0,2.17047658]
[1765333546213,4.657,3308.2,3307.8,0.64392096]
[1765333546410,3.2078,3308.2,3308.1,1.42152125]
[1765333546606,3.9148,3308.2,3308.1,1.42152125]
[1765333546806,0.707,3308.2,3308.1,1.42418312]
[1765333547001,1.4492,3308.2,3308.1,1.42418312]
[1765333547407,1.4492,3308.2,3308.1,0.74038312]
[1765333547607,1.4492,3308.2,3308.1,0.00568312]
[1765333548112,3.2078,3308.6,3308.1,1.42418312]
[1765333548316,1.4492,3308.2,3308.1,1.42418312]
[1765333549516,4.657,3308.2,3308.1,0.00568312]
[1765333550416,4.657,3308.2,3308.1,0.74038312]
[1765333550915,4.657,3308.2,3308.1,0.00568312]
[1765333551219,4.657,3308.2,3308.1,0.74038312]
[1765333551514,4.657,3308.2,3308.1,1.42418312]
[1765333551714,4.657,3308.2,3308.1,0.74038312]
[1765333551914,4.657,3308.2,3308.1,0.00568312]
[1765333556317,4.657,3308.2,3306.7,2.17047658]
[1765333556318,1.3677,3306.8,3306.7,2.17047658]
[1765333556514,0.6921,3306.6,3306.5,1.8696]
[1765333556720,3.2078,3306.8,3306.5,1.8696]
[1765333556721,3.8999,3306.8,3306.7,1.4303]
[1765333556919,3.8999,3306.8,3306.7,2.07422096]
[1765333557112,3.8999,3306.8,3306.7,1.4303]
[1765333557312,3.90271723,3306.8,3306.7,1.43267653]
[1765333557512,4.57831723,3306.8,3306.7,1.43267653]
[1765333557712,3.90271723,3306.8,3306.7,1.43267653]
[1765333558110,4.57831723,3306.8,3306.7,1.43267653]
[1765333559819,4.57831723,3306.8,3306.7,0.69457653]
[1765333560320,4.57831723,3306.8,3306.7,0.00237653]
[1765333563221,4.57831723,3306.8,3306.7,0.69457653]
[1765333563823,3.21061723,3306.8,3306.7,1.43267653]
[1765333564021,3.90271723,3306.8,3306.7,1.43267653]
[1765333564623,4.57831723,3306.8,3306.7,1.43267653]
[1765333565216,3.90271723,3306.8,3306.7,1.43267653]
[1765333565726,4.57831723,3306.8,3306.7,1.43267653]
[1765333566330,4.57831723,3306.8,3306.7,0.00237653]
[1765333568827,4.57831723,3306.8,3306.7,0.69457653]
[1765333569231,4.57831723,3306.8,3306.7,0.00237653]
[1765333572533,1.8325,3306.5,3306.4,0.00453193]
[1765333573428,1.8325,3306.5,3306.4,0.70187559]
[1765333573629,1.4053,3306.5,3306.4,1.44167559]
[1765333574330,1.4053,3306.5,3306.4,0.70187559]
[1765333574834,0.6881,3306.5,3306.4,1.44167559]
[1765333575030,1.4053,3306.5,3306.4,1.44167559]
[1765333575227,1.4053,3306.5,3306.4,0.70187559]
[1765333575833,1.4053,3306.5,3306.4,1.44167559]
[1765333576029,0.6881,3306.5,3306.4,1.44167559]
[1765333576232,4.61591723,3306.8,3306.7,1.4348]
[1765333576828,4.61591723,3306.8,3306.7,0.695]
[1765333577034,1.4053,3306.6,3306.5,1.8413]
[1765333577234,1.4053,3306.6,3306.5,1.4348]
[1765333577430,1.4053,3306.6,3306.5,1.8413]
[1765333577735,4.61591723,3306.8,3306.7,1.4348]
[1765333579031,1.4053,3306.6,3306.5,1.8413]
[1765333579424,1.4053,3306.6,3306.5,1.4348]
[1765333579628,0.6881,3306.6,3306.5,1.8413]
[1765333579833,1.4053,3306.6,3306.5,0.695]
[1765333580637,1.4053,3306.6,3306.5,1.4348]
[1765333580835,1.4053,3306.5,3306.4,1.44167559]
[1765333582138,4.61591723,3306.8,3306.7,1.4348]
[1765333582437,4.61591723,3306.8,3306.7,0.695]
[1765333582638,3.89871723,3306.8,3306.7,1.4348]
[1765333583038,4.61591723,3306.8,3306.7,1.4348]
[1765333584335,4.61591723,3306.8,3306.7,0.695]
[1765333584639,4.61591723,3306.8,3306.7,1.4059]
[1765333586140,4.61591723,3306.8,3306.7,0.695]
[1765333586342,1.3687,3306.6,3306.5,1.8311]
[1765333586544,1.3687,3306.6,3306.5,1.4246]
[1765333587140,1.3687,3306.6,3306.5,1.8522]
[1765333587342,4.57931723,3306.8,3306.7,1.4246]
[1765333587746,4.57931723,3306.8,3306.7,0.7137]
[1765333589244,1.3687,3306.6,3306.5,0.7137]
[1765333589543,1.3687,3306.6,3306.5,1.4246]
[1765333589743,1.3687,3306.6,3306.5,0.7137]
[1765333589945,1.3687,3306.5,3306.4,0.72057559]
[1765333590546,1.3687,3306.5,3306.4,1.43147559]
[1765333591240,1.3687,3306.5,3306.4,3.03701865]
[1765333592047,1.7959,3306.5,3306.4,1.61241865]
[1765333592247,1.7959,3306.5,3306.4,0.00687559]
[1765333592448,1.7959,3306.5,3306.4,0.72057559]
[1765333595249,1.7959,3306.5,3306.4,2.32611865]
[1765333595551,1.7959,3306.5,3306.4,0.00687559]
[1765333597553,2.46040732,3306.5,3306.4,0.00687559]
[1765333597952,2.69450198,3306.5,3306.4,0.00687559]
[1765333602457,2.46040732,3306.5,3306.4,0.00687559]
[1765333604249,2.03320732,3306.5,3306.4,1.43147559]
[1765333604450,1.3687,3306.5,3306.4,1.43147559]
[1765333604849,1.3687,3306.5,3306.4,0.72057559]
[1765333606450,1.3687,3306.5,3306.4,1.43147559]
[1765333608259,1.3687,3306.5,3306.4,0.72057559]
[1765333611762,1.3687,3306.5,3306.4,1.43147559]
[1765333612361,1.3687,3306.5,3306.4,0.72057559]
[1765333613668,0.6704,3306.5,3306.4,1.43147559]
[1765333613857,3.92661723,3306.8,3306.7,1.4025]
[1765333614562,4.66481723,3306.8,3306.7,1.4025]
[1765333614765,3.21061723,3306.8,3306.7,1.4025]
[1765333616863,0.00281723,3306.8,3306.7,1.4025]
[1765333617564,0.00281723,3306.8,3306.7,3.00804306]
[1765333618265,4.662,3307.7,3307.6,1.4025]
[1765333618460,3.2078,3307.7,3307.6,1.4025]
[1765333619462,3.21025336,3307.7,3307.6,1.4025]
[1765333620372,4.66445336,3307.7,3307.6,1.4025]
[1765333622072,1.8944,3307.5,3307.4,0.15116]
[1765333623661,0.716,3307.5,3307.4,1.55366]
[1765333624472,3.92625336,3307.7,3307.6,1.4025]
[1765333624767,4.66445336,3307.7,3307.6,1.4025]
[1765333624965,3.21025336,3307.7,3307.6,1.4025]
[1765333625371,3.92625336,3307.7,3307.6,1.4025]
[1765333625665,3.21025336,3307.7,3307.6,1.55365]
[1765333625873,0.00245336,3307.7,3307.6,1.55365]
[1765333626073,0.00245336,3307.7,3307.6,4.76145]
[1765333628571,3.9238,3308.6,3308.5,1.4025]
[1765333628769,3.2078,3308.6,3308.5,1.815]
[1765333629165,3.9238,3308.6,3308.5,1.815]
[1765333629372,0.716,3308.2,3308.1,1.55363]
[1765333630074,1.45873193,3308.5,3308.4,1.4025]
[1765333631868,1.45873193,3308.5,3308.4,0.7126]
[1765333632874,1.45873193,3308.5,3308.4,1.3926]
[1765333635378,0.7152,3308.2,3308.1,1.52953]
[1765333635579,1.4098,3308.2,3308.1,0.84953]
[1765333635782,1.4098,3308.2,3308.1,1.52953]
[1765333636079,0.7152,3308.2,3308.1,1.52953]
[1765333636279,1.4098,3308.2,3308.1,1.52953]
[1765333636682,1.41433193,3308.5,3308.4,1.3784]
[1765333636881,1.4098,3308.2,3308.1,1.52953]
[1765333637782,0.7152,3308.2,3308.1,1.52953]
[1765333638577,1.4098,3308.2,3308.1,1.52953]
[1765333639785,1.41433193,3308.5,3308.4,0.6984]
[1765333640173,1.41433193,3308.5,3308.4,1.3784]
[1765333641185,1.41433193,3308.5,3308.4,0.6984]
[1765333641380,0.7152,3308.2,3308.1,1.52953]
[1765333642180,1.4098,3308.2,3308.1,1.52953]
[1765333643488,0.7152,3308.2,3308.1,1.52953]
[1765333648988,1.45233193,3308.5,3308.4,1.4066]
[1765333649388,0.00453193,3308.5,3308.4,1.4066]
[1765333649887,0.00453193,3308.5,3308.4,4.6144]
[1765333651389,0.00453193,3308.5,3308.4,4.76551]
[1765333651994,0.74573193,3308.5,3308.4,4.76551]
[1765333653794,1.45233193,3308.5,3308.4,4.76551]
[1765333654088,1.45233193,3308.5,3308.4,1.55771]
[1765333654089,0.74573193,3308.5,3308.4,1.55771]
[1765333654293,0.00453193,3308.5,3308.4,1.55771]
[1765333654483,0.00453193,3308.5,3308.4,4.76551]
[1765333654683,0.74573193,3308.5,3308.4,4.76551]
[1765333654888,1.45233193,3308.5,3308.4,4.76551]
[1765333655290,1.45233193,3308.5,3308.4,6.38377265]
[1765333656093,0.74573193,3308.5,3308.4,6.38377265]
[1765333656688,0.00453193,3308.5,3308.4,4.76551]
[1765333659093,4.6556,3309.4,3309.3,1.4066]
[1765333660092,4.65803871,3309.4,3309.3,1.41044508]
[1765333661994,3.21023871,3309.4,3309.3,1.41044508]
[1765333662201,3.95143871,3309.4,3309.3,1.41044508]
[1765333662789,4.65803871,3309.4,3309.3,1.41044508]
[1765333662998,4.65803871,3309.4,3309.3,0.00384508]
[1765333666103,5.31538602,3309.4,3309.3,0.00384508]
[1765333672300,2.10758602,3309.4,3309.3,0.00384508]
[1765333672499,1.40098602,3309.4,3309.3,1.41044508]
[1765333672705,1.45023871,3309.4,3309.3,1.41044508]
[1765333672902,2.10758602,3309.4,3309.3,0.69944508]
[1765333673708,2.10758602,3309.4,3309.3,0.00384508]
[1765333673910,5.31538602,3309.4,3309.3,0.00384508]
[1765333675299,4.63563871,3309.4,3309.3,1.42054508]
[1765333677305,4.63563871,3309.4,3309.3,0.68544508]
[1765333678108,3.21023871,3309.4,3309.3,1.42054508]
[1765333678317,0.00243871,3309.4,3309.3,5.27288792]
[1765333678515,0.00243871,3309.4,3309.3,1.42054508]
[1765333678717,1.42783871,3309.4,3309.3,0.68544508]
[1765333679015,1.42783871,3309.4,3309.3,1.42054508]
[1765333680513,0.00243871,3309.4,3309.3,1.42054508]
[1765333681117,0.00243871,3309.4,3309.3,6.24365841]
[1765333685124,0.00453193,3309.7,3309.6,1.4167]
[1765333685315,0.00453193,3309.7,3309.6,2.06124284]
[1765333685513,0.00453193,3309.7,3309.6,3.67572618]
[1765333686215,0.0083469,3309.7,3309.6,2.06124284]
[1765333686821,0.0083469,3309.7,3309.6,1.4167]
[1765333687217,3.9073,3310.2,3310.1,1.4167]
[1765333687821,4.6332,3310.2,3310.1,1.4167]
[1765333688224,4.63656115,3310.2,3310.1,0.6816]
[1765333688419,0.7259,3310.1,3310.0,0.6816]
[1765333688615,1.4254,3309.9,3309.8,0.68613193]
[1765333688815,1.4254,3309.9,3309.8,1.42123193]
[1765333694423,0.6995,3309.9,3309.8,1.42123193]
[1765333694622,0.72496115,3310.2,3310.1,1.4284]
[1765333695628,0.00336115,3310.2,3310.1,1.4284]
[1765333695928,0.72496115,3310.2,3310.1,1.4284]
[1765333696427,0.00336115,3310.2,3310.1,1.4284]
[1765333697427,0.72496115,3310.2,3310.1,1.4284]
[1765333697626,0.00336115,3310.2,3310.1,1.4284]
[1765333698222,0.00336115,3310.2,3310.1,1.57944]
[1765333698623,0.00336115,3310.2,3310.1,4.78724]
[1765333704336,0.00453193,3310.5,3310.4,1.56862]
[1765333705226,0.00737307,3310.5,3310.4,1.56862]
[1765333709033,1.38957307,3310.5,3310.4,1.56862]
[1765333709234,1.38957307,3310.5,3310.4,3.18310334]
[1765333709235,0.68007307,3310.5,3310.4,3.18310334]
[1765333709434,1.38957307,3310.5,3310.4,1.76550334]
[1765333709634,0.68007307,3310.5,3310.4,3.18310334]
[1765333709835,0.00737307,3310.5,3310.4,3.18310334]
[1765333710342,0.68007307,3310.5,3310.4,1.56862]
[1765333710540,1.82847307,3310.5,3310.4,0.15102]
[1765333711034,1.82847307,3310.5,3310.4,0.84022]
[1765333711740,1.82847307,3310.5,3310.4,0.15102]
[1765333712035,1.3822,3310.2,3310.1,3.2078]
[1765333712444,1.3822,3309.9,3309.8,0.00453193]
[1765333712642,1.3822,3309.9,3309.8,0.69373193]
[1765333712832,1.3822,3309.9,3309.8,0.00453193]
[1765333722860,4.59,3309.9,3309.8,0.00453193]
[1765333723060,1.3822,3309.4,3309.3,0.00384508]
[1765333727556,1.3822,3309.4,3309.3,1.42144508]
[1765333728757,1.3822,3309.4,3309.3,0.69304508]
[1765333729062,1.3822,3309.4,3309.3,0.00384508]
[1765333731058,1.3822,3309.4,3309.3,0.69304508]
[1765333731258,0.6727,3309.4,3309.3,1.42144508]
[1765333731463,1.3822,3309.4,3309.3,1.42144508]
[1765333731866,1.3822,3309.4,3309.3,0.69304508]
[1765333732060,1.3822,3309.4,3309.3,0.00384508]
[1765333733463,1.3822,3309.4,3309.3,0.69304508]
[1765333734069,1.3822,3309.4,3309.3,0.00384508]
[1765333735365,1.3822,3309.4,3309.3,1.45034508]
[1765333736357,0.6727,3309.4,3309.3,1.45034508]
[1765333736957,1.4097,3309.4,3309.3,1.45034508]
[1765333737364,1.4713,3309.4,3309.3,0.73274508]
[1765333737967,1.4713,3309.4,3309.3,0.00384508]
[1765333738168,1.4713,3309.4,3309.3,0.73274508]
[1765333738974,1.4713,3309.4,3309.3,1.45034508]
[1765333739168,1.4713,3309.4,3309.3,0.00384508]
[1765333746682,2.11542703,3309.4,3309.3,0.00384508]
[1765333747782,2.11542703,3309.4,3309.3,1.45034508]
[1765333747783,1.4713,3309.4,3309.3,1.45034508]
[1765333749581,0.7343,3309.4,3309.3,1.45034508]
[1765333749970,1.4713,3309.4,3309.3,1.45034508]
[1765333750174,1.4713,3309.4,3309.3,0.00384508]
[1765333751475,2.12372829,3309.4,3309.3,0.00384508]
[1765333753885,5.33152829,3309.4,3309.3,0.00384508]
[1765333758177,2.06462703,3309.1,3309.0,0.00453193]
[1765333758676,2.71677611,3309.1,3309.0,0.00453193]
[1765333759180,2.71677611,3309.1,3309.0,0.00688944]
[1765333760293,1.4205,3308.7,3308.6,1.61098868]
[1765333760592,1.4205,3308.7,3308.4,3.2078]
[1765333760593,1.8225,3308.5,3308.4,3.8938]
[1765333761294,1.8225,3308.5,3308.4,3.89744786]
[1765333762587,1.8225,3308.5,3308.4,4.60824786]
[1765333762785,1.819,3309.0,3308.9,0.686]
[1765333762983,1.4205,3308.6,3308.5,3.01420634]
[1765333763393,1.4205,3308.6,3308.5,2.30340634]
[1765333763593,1.4031,3308.5,3308.4,5.5396542]
[1765333764090,1.4031,3308.5,3308.4,6.2497542]
[1765333764488,1.4031,3308.5,3308.4,4.63234786]
[1765333765092,1.8384,3308.5,3308.4,3.21144786]
[1765333767293,1.4031,3308.5,3308.4,4.63234786]
[1765333767499,0.6914,3308.5,3308.4,4.63234786]
[1765333767691,1.4031,3308.5,3308.4,4.63234786]
[1765333768502,1.8384,3308.5,3308.4,3.21144786]
[1765333770501,1.8384,3308.5,3308.4,3.92224786]
[1765333770997,1.8384,3308.5,3308.4,0.71444786]
[1765333771997,1.8384,3308.5,3308.4,0.00364786]
[1765333772207,2.48252703,3308.5,3308.4,0.00364786]
[1765333776390,1.4031,3308.2,3308.1,0.00453193]
[1765333776592,2.04722703,3308.2,3308.1,0.00453193]
[1765333777495,2.04722703,3308.2,3308.1,0.00819239]
[1765333782120,2.04722703,3308.2,3308.1,0.71899239]
[1765333782121,1.4031,3308.2,3308.1,0.71899239]
[1765333782524,1.4031,3308.2,3308.1,0.00819239]
[1765333785627,4.6109,3308.3,3308.2,1.4209]
[1765333785927,4.6109,3308.3,3308.2,0.7108]
[1765333788427,3.8992,3308.3,3308.2,1.4209]
[1765333788726,4.6109,3308.7,3308.6,0.7108]
[1765333788928,5.26276429,3308.7,3308.1,0.00819239]
[1765333789122,0.64412703,3308.6,3308.1,0.00819239]
[1765333789316,0.6914,3308.2,3308.1,1.42909239]
[1765333789630,1.4031,3308.2,3308.1,1.42909239]
[1765333792725,1.4031,3308.2,3308.1,0.71899239]
[1765333794336,1.4031,3308.2,3308.1,1.42909239]
[1765333795331,1.4031,3308.2,3308.1,0.00819239]
[1765333795733,1.4031,3308.2,3308.1,0.72009239]
[1765333796836,1.4031,3308.2,3308.1,1.46519239]
[1765333800329,1.4432,3308.5,3308.4,1.457]
[1765333800629,2.09582063,3308.5,3308.4,1.457]
[1765333801034,2.09582063,3308.5,3308.4,0.7119]
[1765333801236,0.7426,3308.2,3308.1,1.46519239]
[1765333801527,1.4432,3308.2,3308.1,0.00819239]
[1765333804737,1.4432,3308.2,3308.1,1.46519239]
[1765333805740,3.2078,3308.7,3308.1,1.46519239]
[1765333805936,0.65806213,3308.6,3308.1,1.46519239]
[1765333806141,2.10126213,3308.6,3308.5,0.7119]
[1765333806341,2.10126213,3308.6,3308.5,1.457]
[1765333806537,2.10126213,3308.6,3308.5,0.7119]
[1765333806841,0.00453193,3308.8,3308.7,1.457]
[1765333807540,0.74713193,3308.8,3308.7,1.457]
[1765333807743,1.44773193,3308.8,3308.7,1.457]
[1765333808136,1.4432,3308.5,3308.4,3.35891]
[1765333808333,1.4432,3308.5,3308.4,3.9197]
[1765333808632,1.4432,3308.5,3308.4,3.2078]
[1765333808633,1.8546,3308.5,3308.4,3.2078]
[1765333808836,0.00453193,3308.8,3308.1,1.46519239]
[1765333809934,0.00453193,3308.8,3308.1,3.08259873]
[1765333810134,1.4432,3308.2,3308.1,1.46519239]
[1765333810336,0.7426,3308.2,3308.1,1.46519239]
[1765333811135,0.7426,3308.2,3308.1,3.08259873]
[1765333812146,1.8448,3308.5,3308.4,1.4089]
[1765333812347,1.4334,3308.5,3308.4,1.4089]
[1765333812649,0.7426,3308.5,3308.4,1.4089]
[1765333813039,1.4334,3308.5,3308.4,1.4089]